lending/lending_fUSD_20240621
["ID","MTS","AMOUNT","RATE_DAILY","PERIOD"]
[330079666,1718989336355,-8046.95,0.0002219,4]
[330079667,1718989336393,-1323.04,0.0002219,4]
[330079668,1718989336431,-4070.08,0.0002219,4]
[330079669,1718989336468,-1815.14,0.0002219,4]
[330079670,1718989336507,-1488.18,0.0002219,4]
[330079671,1718989336543,-500.0,0.0002219,4]
[330079672,1718989336582,-657.08,0.0002219,4]
[330079673,1718989336619,-9030.4,0.0002219,4]
[330079674,1718989336656,-794.21,0.0002219,4]
[330079675,1718989336693,-1499.97,0.0002219,4]
[330079676,1718989336730,-2173.9,0.0002219,4]
[330079677,1718989336766,-3047.87,0.0002219,4]
[330079678,1718989336804,-500.0,0.0002219,4]
[330079679,1718989336844,-1700.13,0.0002219,4]
[330079680,1718989336884,-4629.34,0.0002219,4]
[330079681,1718989336924,-500.0,0.00022191,4]
[330079682,1718989336964,-500.0,0.00022191,4]
[330079683,1718989337180,-621.56,0.00022191,4]
[330079684,1718989337230,-531.24,0.00022191,4]
[330079685,1718989337276,-500.0,0.00022191,4]
[330079686,1718989337317,-500.0,0.00022191,4]
[330079687,1718989337358,-500.0,0.00022191,4]
[330079688,1718989337401,-28680.83,0.00022191,4]
[330079689,1718989337438,-1572.29,0.00022191,4]
[330079690,1718989337474,-1201.37,0.00022191,4]
[330079691,1718989337512,-7248.4,0.00022191,4]
[330079692,1718989337548,-500.0,0.00022191,4]
[330079693,1718989337588,-1005.63,0.00022191,4]
[330079694,1718989337626,-548.02,0.00022191,4]
[330079695,1718989337663,-403.51651149,0.00022191,4]
[330079696,1718989337701,-770.44,0.00022191,4]
[330079697,1718989337738,-500.0,0.00022191,4]
[330079698,1718989337776,-252.27293363,0.00022191,4]
[330079699,1718989337813,-1841.87,0.00022191,4]
[330079700,1718989337852,-3223.29,0.00022191,4]
[330079701,1718989337890,-4599.28,0.00022191,4]
[330079702,1718989337930,-500.0,0.00022191,4]
[330079703,1718989337967,-500.0,0.00022191,4]
[330079704,1718989338007,-500.0,0.00022191,4]
[330079705,1718989338045,-5333.33,0.00022191,4]
[330079706,1718989338083,-522.9,0.00022191,4]
[330079707,1718989338122,-742.2,0.00022191,4]
[330079708,1718989338161,-500.0,0.00022191,4]
[330079709,1718989338200,-10616.24,0.00022191,4]
[330079710,1718989338238,-500.0,0.00022191,4]
[330079711,1718989338276,-500.0,0.00022191,4]
[330079712,1718989338313,-1192.22,0.00022191,4]
[330079713,1718989338350,-500.0,0.00022191,4]
[330079714,1718989338389,-500.0,0.00022191,4]
[330079715,1718989338430,-4951.58,0.00022191,4]
[330079716,1718989338470,-938.16,0.00022191,4]
[330079717,1718989338511,-2642.79,0.00022191,4]
[330079718,1718989338551,-500.0,0.00022191,4]
[330079719,1718989338592,-1372.38,0.00022191,4]
[330079720,1718989338631,-500.0,0.00022191,4]
[330079721,1718989338671,-1160.56,0.00022191,4]
[330079722,1718989338707,-500.0,0.00022191,4]
[330079723,1718989338742,-500.0,0.00022191,4]
[330079724,1718989338780,-4311.97,0.00022191,4]
[330079725,1718989338815,-250.0,0.00022191,4]
[330079726,1718989338851,-624.64,0.00022191,4]
[330079727,1718989338887,-500.0,0.00022191,4]
[330079728,1718989338923,-1457.99,0.00022191,4]
[330079729,1718989338959,-500.0,0.00022191,4]
[330079730,1718989338995,-511.55,0.00022191,4]
[330079731,1718989339034,-500.0,0.00022191,4]
[330079732,1718989339070,-3016.12,0.00022191,4]
[330079733,1718989339105,-1124.7,0.00022191,4]
[330079734,1718989339142,-500.0,0.00022191,4]
[330079735,1718989339178,-595.44,0.00022191,4]
[330079736,1718989339213,-500.0,0.00022191,2]
[330079737,1718989339249,-4176.99,0.00022191,4]
[330079738,1718989339285,-963.23,0.00022191,4]
[330079739,1718989339323,-500.0,0.00022191,4]
[330079740,1718989339361,-759.23,0.00022191,4]
[330079741,1718989339398,-500.0,0.00022191,4]
[330079742,1718989339435,-19923.27,0.00022191,4]
[330079743,1718989339473,-1020.76,0.00022191,4]
[330079744,1718989339517,-35607.45,0.00022191,4]
[330079745,1718989339554,-500.0,0.00022191,4]
[330079746,1718989339593,-500.0,0.00022191,4]
[330079747,1718989339631,-500.0,0.00022191,4]
[330079748,1718989339670,-1064.78,0.00022191,4]
[330079749,1718989339708,-873.22,0.00022191,4]
[330079750,1718989339747,-1000.29,0.00022191,4]
[330079751,1718989339784,-500.0,0.00022191,4]
[330079752,1718989339821,-733.93,0.00022191,4]
[330079753,1718989339857,-500.0,0.00022191,4]
[330079754,1718989339896,-1972.32,0.00022191,4]
[330079755,1718989339935,-2686.69,0.00022191,4]
[330079756,1718989339972,-1011.28,0.00022191,4]
[330079757,1718989340009,-852.94,0.00022191,4]
[330079758,1718989340045,-554.48,0.00022191,4]
[330079759,1718989340082,-1219.8,0.00022454,4]
[330079760,1718989340119,-2040.63,0.00022454,4]
[330079761,1718989340155,-871.25,0.00022454,4]
[330079762,1718989340190,-500.0,0.00022454,4]
[330079763,1718989340225,-500.0,0.00022454,4]
[330079764,1718989340261,-500.0,0.00022454,2]
[330079765,1718989340295,-1063.28,0.00022454,4]
[330079766,1718989340330,-1664.44,0.00022454,4]
[330079767,1718989340370,-2566.45,0.00022454,4]
[330079768,1718989340405,-500.0,0.00022454,4]
[330079769,1718989340441,-500.0,0.00022454,4]
[330079770,1718989340478,-1747.85,0.00022454,4]
[330079771,1718989340518,-574.66,0.00022454,4]
[330079772,1718989340558,-1705.93,0.00022454,4]
[330079773,1718989340916,-500.0,0.00022454,4]
[330079774,1718989340961,-1809.88,0.00022454,4]
[330079775,1718989341007,-500.0,0.00022454,4]
[330079776,1718989341048,-790.72,0.00022454,4]
[330079777,1718989341087,-500.0,0.00022454,4]
[330079778,1718989341126,-614.11,0.00022454,4]
[330079779,1718989341165,-500.0,0.00022454,4]
[330079780,1718989341202,-1508.15,0.00022454,4]
[330079781,1718989341240,-1548.69,0.00022454,4]
[330079782,1718989341280,-2741.26,0.00022454,4]
[330079783,1718989341316,-500.0,0.00022454,4]
[330079784,1718989341353,-6285.49,0.00022454,4]
[330079785,1718989341396,-1898.31,0.00022454,4]
[330079786,1718989341432,-655.33,0.00022454,4]
[330079787,1718989341468,-900.76,0.00022454,4]
[330079788,1718989341506,-1711.8,0.00022454,4]
[330079789,1718989341544,-500.0,0.00022454,4]
[330079790,1718989341580,-500.0,0.00022454,4]
[330079791,1718989341619,-500.0,0.00022454,4]
[330079792,1718989341657,-1259.32,0.00022454,4]
[330079793,1718989341693,-2485.94,0.00022454,4]
[330079794,1718989341733,-500.0,0.00022454,4]
[330079795,1718989341772,-500.0,0.00022454,4]
[330079796,1718989341811,-543.58,0.00022454,4]
[330079797,1718989341852,-1395.51,0.00022454,4]
[330079798,1718989341900,-500.0,0.00022454,4]
[330079799,1718989341945,-500.0,0.00022454,4]
[330079800,1718989341988,-5180.35,0.00022454,4]
[330079801,1718989342031,-779.08,0.00022454,4]
[330079802,1718989342070,-2519.32,0.00022454,4]
[330079803,1718989342109,-882.56,0.00022454,4]
[330079804,1718989342150,-500.0,0.00022454,4]
[330079805,1718989342187,-1115.61,0.00022454,4]
[330079806,1718989342228,-500.0,0.00022454,4]
[330079807,1718989342265,-500.0,0.00022454,4]
[330079808,1718989342302,-13200.45,0.00022454,4]
[330079809,1718989342337,-2657.49,0.00022454,4]
[330079810,1718989342374,-500.0,0.00022454,4]
[330079811,1718989342409,-500.0,0.00022464,4]
[330079812,1718989342445,-2683.64,0.00022464,4]
[330079813,1718989342480,-1833.6,0.00022464,4]
[330079814,1718989342517,-2534.22,0.00022464,4]
[330079815,1718989342555,-1662.17,0.00022464,4]
[330079816,1718989342594,-1196.01,0.00022464,4]
[330079817,1718989342632,-8046.95,0.00022464,4]
[330079818,1718989342669,-1323.04,0.00022464,4]
[330079819,1718989342706,-4070.08,0.00022464,4]
[330079820,1718989342742,-1815.14,0.00022464,4]
[330079821,1718989342780,-1488.18,0.00022464,4]
[330079822,1718989342816,-500.0,0.00022464,4]
[330079823,1718989342852,-657.08,0.00022464,4]
[330079824,1718989342888,-9030.4,0.00022464,4]
[330079825,1718989342926,-794.21,0.00022464,4]
[330079826,1718989342960,-1499.97,0.00022464,4]
[330079827,1718989342997,-2173.9,0.00022464,4]
[330079828,1718989343037,-3047.87,0.00022464,4]
[330079829,1718989343071,-500.0,0.00022464,4]
[330079830,1718989343106,-1700.13,0.00022464,4]
[330079831,1718989343142,-4629.34,0.00022464,4]
[330079832,1718989343177,-510.15904116,0.00022465,4]
[330079833,1718989343210,-500.0,0.00022465,4]
[330079834,1718989343243,-621.56,0.00022465,4]
[330079835,1718989343279,-531.24,0.00022465,4]
[330079836,1718989343315,-500.0,0.00022465,4]
[330079837,1718989343349,-500.0,0.00022465,4]
[330079838,1718989343385,-500.0,0.00022465,4]
[330079839,1718989343423,-28680.83,0.00022465,4]
[330079840,1718989343459,-1572.29,0.00022465,4]
[330079841,1718989343495,-1201.37,0.00022465,4]
[330079842,1718989343533,-7248.4,0.00022465,4]
[330079843,1718989343572,-561.23261941,0.00022465,4]
[330079844,1718989343612,-1005.63,0.00022465,4]
[330079845,1718989343650,-548.02,0.00022465,4]
[330079846,1718989343687,-770.44,0.00022465,4]
[330079847,1718989343722,-500.0,0.00022465,4]
[330079848,1718989343759,-1841.87,0.00022465,4]
[330079849,1718989343797,-3223.29,0.00022465,4]
[330079850,1718989343833,-4599.28,0.00022465,4]
[330079851,1718989343962,-500.0,0.00022465,4]
[330079852,1718989344002,-500.0,0.00022465,4]
[330079853,1718989344040,-500.0,0.00022465,4]
[330079854,1718989344079,-5333.33,0.00022465,4]
[330079855,1718989344118,-522.9,0.00022465,4]
[330079856,1718989344156,-742.2,0.00022465,4]
[330079857,1718989344194,-500.0,0.00022465,4]
[330079858,1718989344232,-10616.24,0.00022465,4]
[330079859,1718989344270,-500.0,0.00022465,4]
[330079860,1718989344305,-500.0,0.00022465,4]
[330079861,1718989344341,-1192.22,0.00022465,4]
[330079862,1718989344377,-500.0,0.00022465,4]
[330079863,1718989344414,-500.0,0.00022465,4]
[330079864,1718989344451,-4951.58,0.00022465,4]
[330079865,1718989344487,-938.16,0.00022465,4]
[330079866,1718989344525,-2642.79,0.00022465,4]
[330079867,1718989344562,-500.0,0.00022465,4]
[330079868,1718989344600,-1372.38,0.00022465,4]
[330079869,1718989344640,-500.0,0.00022465,4]
[330079870,1718989344677,-1160.56,0.00022465,4]
[330079871,1718989344714,-500.0,0.00022465,4]
[330079872,1718989344751,-500.0,0.00022465,4]
[330079873,1718989344788,-4311.97,0.00022465,4]
[330079874,1718989344825,-250.0,0.00022465,4]
[330079875,1718989344866,-624.64,0.00022465,4]
[330079876,1718989344905,-500.0,0.00022465,4]
[330079877,1718989344951,-1457.99,0.00022465,4]
[330079878,1718989344990,-500.0,0.00022465,4]
[330079879,1718989345034,-511.55,0.00022465,4]
[330079880,1718989345076,-500.0,0.00022465,4]
[330079881,1718989345115,-3016.12,0.00022465,4]
[330079882,1718989345154,-1124.7,0.00022465,4]
[330079883,1718989345193,-500.0,0.00022465,4]
[330079884,1718989345232,-595.44,0.00022465,4]
[330079885,1718989345272,-500.0,0.00022465,2]
[330079886,1718989345316,-4176.99,0.00022465,4]
[330079887,1718989345356,-963.23,0.00022465,4]
[330079888,1718989345402,-500.0,0.00022465,4]
[330079889,1718989345445,-759.23,0.00022465,4]
[330079890,1718989345489,-500.0,0.00022465,4]
[330079891,1718989345533,-19923.27,0.00022465,4]
[330079892,1718989345580,-1020.76,0.00022465,4]
[330079893,1718989345626,-35607.45,0.00022465,4]
[330079894,1718989345671,-500.0,0.00022465,4]
[330079895,1718989345717,-500.0,0.00022465,4]
[330079896,1718989345762,-500.0,0.00022465,4]
[330079897,1718989345802,-1064.78,0.00022465,4]
[330079898,1718989345840,-873.22,0.00022465,4]
[330079899,1718989345880,-1000.29,0.00022465,4]
[330079900,1718989345919,-500.0,0.00022465,4]
[330079901,1718989345961,-500.0,0.00022465,4]
[330079902,1718989346003,-733.93,0.00022465,4]
[330079903,1718989346042,-1972.32,0.00022465,4]
[330079904,1718989346080,-2686.69,0.00022465,4]
[330079905,1718989346122,-1011.28,0.00022465,4]
[330079906,1718989346161,-852.94,0.00022465,4]
[330079907,1718989346197,-183.75507,0.00022521,2]
[330079908,1718989346233,-1216.2936991,0.0002253,2]
[330079909,1718989346269,-1219.8,0.00022728,4]
[330079910,1718989346308,-871.25,0.00022728,4]
[330079911,1718989346343,-2040.63,0.00022728,4]
[330079912,1718989346378,-500.0,0.00022728,4]
[330079913,1718989346412,-500.0,0.00022728,4]
[330079914,1718989346446,-1063.28,0.00022728,4]
[330079915,1718989346481,-1664.44,0.00022728,4]
[330079916,1718989346517,-2566.45,0.00022728,4]
[330079917,1718989346552,-500.0,0.00022728,4]
[330079918,1718989346587,-500.0,0.00022728,4]
[330079919,1718989346624,-1747.85,0.00022728,4]
[330079920,1718989346662,-574.66,0.00022728,4]
[330079921,1718989346698,-1705.93,0.00022728,4]
[330079922,1718989346733,-500.0,0.00022728,4]
[330079923,1718989346768,-1809.88,0.00022728,4]
[330079924,1718989346803,-500.0,0.00022728,4]
[330079925,1718989346839,-790.72,0.00022728,4]
[330079926,1718989346875,-500.0,0.00022728,4]
[330079927,1718989346916,-614.11,0.00022728,4]
[330079928,1718989346955,-500.0,0.00022728,4]
[330079929,1718989346999,-1508.15,0.00022728,4]
[330079930,1718989347045,-1548.69,0.00022728,4]
[330079931,1718989347082,-2741.26,0.00022728,4]
[330079932,1718989347122,-500.0,0.00022728,4]
[330079933,1718989347160,-6285.49,0.00022728,4]
[330079934,1718989347199,-1898.31,0.00022728,4]
[330079935,1718989347237,-655.33,0.00022728,4]
[330079936,1718989347274,-900.76,0.00022728,4]
[330079937,1718989347309,-1711.8,0.00022728,4]
[330079938,1718989347344,-500.0,0.00022728,4]
[330079939,1718989347381,-500.0,0.00022728,4]
[330079940,1718989347417,-500.0,0.00022728,4]
[330079941,1718989347453,-1259.32,0.00022728,4]
[330079942,1718989347489,-2485.94,0.00022728,4]
[330079943,1718989347526,-500.0,0.00022728,4]
[330079944,1718989347564,-500.0,0.00022728,4]
[330079945,1718989347599,-543.58,0.00022728,4]
[330079946,1718989347634,-1395.51,0.00022728,4]
[330079947,1718989347669,-500.0,0.00022728,4]
[330079948,1718989347705,-500.0,0.00022728,4]
[330079949,1718989347742,-5180.35,0.00022728,4]
[330079950,1718989347777,-779.08,0.00022728,4]
[330079951,1718989347816,-2519.32,0.00022728,4]
[330079952,1718989347853,-882.56,0.00022728,4]
[330079953,1718989347894,-500.0,0.00022728,4]
[330079954,1718989347933,-1115.61,0.00022728,4]
[330079955,1718989347970,-500.0,0.00022728,4]
[330079956,1718989348010,-500.0,0.00022728,4]
[330079957,1718989348048,-13200.45,0.00022728,4]
[330079958,1718989348084,-2657.49,0.00022728,4]
[330079959,1718989348122,-500.0,0.00022728,4]
[330079960,1718989348157,-534.0,0.00022738,2]
[330079961,1718989348192,-500.0,0.00022738,4]
[330079962,1718989348226,-500.0,0.00022738,4]
[330079963,1718989348260,-500.0,0.00022738,4]
[330079964,1718989348294,-2683.64,0.00022738,4]
[330079965,1718989348328,-1833.6,0.00022738,4]
[330079966,1718989348362,-2534.22,0.00022738,4]
[330079967,1718989348399,-1662.17,0.00022738,4]
[330079968,1718989348434,-1196.01,0.00022738,4]
[330079969,1718989348594,-8046.95,0.00022738,4]
[330079970,1718989348639,-1323.04,0.00022738,4]
[330079971,1718989348678,-4070.08,0.00022738,4]
[330079972,1718989348715,-1815.14,0.00022738,4]
[330079973,1718989348753,-1488.18,0.00022738,4]
[330079974,1718989348790,-500.0,0.00022738,4]
[330079975,1718989348826,-3123.99498311,0.00022738,2]
[330079976,1718989348861,-657.08,0.00022738,4]
[330079977,1718989348899,-9030.4,0.00022738,4]
[330079978,1718989348937,-794.21,0.00022738,4]
[330079979,1718989348976,-1499.97,0.00022738,4]
[330079980,1718989349014,-2173.9,0.00022738,4]
[330079981,1718989349051,-3047.87,0.00022738,4]
[330079982,1718989349090,-500.0,0.00022738,4]
[330079983,1718989349129,-1700.13,0.00022738,4]
[330079984,1718989349166,-4629.34,0.00022738,4]
[330079985,1718989349203,-150.0,0.00022738,10]
[330079986,1718989349243,-150.0,0.00022738,10]
[330079987,1718989349283,-150.0,0.00022738,10]
[330079988,1718989349322,-150.0,0.00022738,10]
[330079989,1718989349364,-150.0,0.00022738,10]
[330079990,1718989349407,-150.0,0.00022738,10]
[330079991,1718989349445,-150.0,0.00022738,10]
[330079992,1718989349483,-150.0,0.00022738,10]
[330079993,1718989349522,-150.0,0.00022738,10]
[330079994,1718989349559,-500.0,0.00022739,4]
[330079995,1718989349598,-621.56,0.00022739,4]
[330079996,1718989349636,-531.24,0.00022739,4]
[330079997,1718989349672,-500.0,0.00022739,4]
[330079998,1718989349709,-500.0,0.00022739,4]
[330079999,1718989349745,-500.0,0.00022739,4]
[330080000,1718989349782,-28680.83,0.00022739,4]
[330080001,1718989349824,-1572.29,0.00022739,4]
[330080002,1718989349861,-1201.37,0.00022739,4]
[330080003,1718989349901,-7248.4,0.00022739,4]
[330080004,1718989349939,-1005.63,0.00022739,4]
[330080005,1718989349974,-548.02,0.00022739,4]
[330080006,1718989350010,-770.44,0.00022739,4]
[330080007,1718989350046,-500.0,0.00022739,4]
[330080008,1718989350082,-1841.87,0.00022739,4]
[330080009,1718989350120,-3223.29,0.00022739,4]
[330080010,1718989350156,-4599.28,0.00022739,4]
[330080011,1718989350192,-500.0,0.00022739,4]
[330080012,1718989350228,-500.0,0.00022739,4]
[330080013,1718989350263,-500.0,0.00022739,4]
[330080014,1718989350299,-5333.33,0.00022739,4]
[330080015,1718989350335,-522.9,0.00022739,4]
[330080016,1718989350375,-742.2,0.00022739,4]
[330080017,1718989350414,-500.0,0.00022739,4]
[330080018,1718989350451,-10616.24,0.00022739,4]
[330080019,1718989350486,-500.0,0.00022739,4]
[330080020,1718989350525,-500.0,0.00022739,4]
[330080021,1718989350564,-1192.22,0.00022739,4]
[330080022,1718989350601,-500.0,0.00022739,4]
[330080023,1718989350637,-500.0,0.00022739,4]
[330080024,1718989350675,-4951.58,0.00022739,4]
[330080025,1718989350712,-938.16,0.00022739,4]
[330080026,1718989350748,-2642.79,0.00022739,4]
[330080027,1718989350788,-500.0,0.00022739,4]
[330080028,1718989350827,-1372.38,0.00022739,4]
[330080029,1718989350864,-500.0,0.00022739,4]
[330080030,1718989350907,-1160.56,0.00022739,4]
[330080031,1718989350947,-500.0,0.00022739,4]
[330080032,1718989350994,-500.0,0.00022739,4]
[330080033,1718989351038,-4311.97,0.00022739,4]
[330080034,1718989351078,-250.0,0.00022739,4]
[330080035,1718989351117,-624.64,0.00022739,4]
[330080036,1718989351157,-500.0,0.00022739,4]
[330080037,1718989351195,-1457.99,0.00022739,4]
[330080038,1718989351232,-500.0,0.00022739,4]
[330080039,1718989351270,-511.55,0.00022739,4]
[330080040,1718989351308,-500.0,0.00022739,4]
[330080041,1718989351347,-3016.12,0.00022739,4]
[330080042,1718989351385,-1124.7,0.00022739,4]
[330080043,1718989351422,-500.0,0.00022739,4]
[330080044,1718989351462,-595.44,0.00022739,4]
[330080045,1718989351500,-500.0,0.00022739,2]
[330080046,1718989351536,-963.23,0.00022739,4]
[330080047,1718989351578,-4176.99,0.00022739,4]
[330080048,1718989351616,-500.0,0.00022739,4]
[330080049,1718989351664,-759.23,0.00022739,4]
[330080050,1718989351700,-500.0,0.00022739,4]
[330080051,1718989351738,-19923.27,0.00022739,4]
[330080052,1718989351775,-1020.76,0.00022739,4]
[330080053,1718989351815,-35607.45,0.00022739,4]
[330080054,1718989351853,-500.0,0.00022739,4]
[330080055,1718989351891,-500.0,0.00022739,4]
[330080056,1718989351932,-500.0,0.00022739,4]
[330080057,1718989351971,-1064.78,0.00022739,4]
[330080058,1718989352008,-873.22,0.00022739,4]
[330080059,1718989352046,-1000.29,0.00022739,4]
[330080060,1718989352083,-500.0,0.00022739,4]
[330080061,1718989352123,-733.93,0.00022739,4]
[330080062,1718989352160,-500.0,0.00022739,4]
[330080063,1718989352512,-1972.32,0.00022739,4]
[330080064,1718989352553,-2686.69,0.00022739,4]
[330080065,1718989352592,-1011.28,0.00022739,4]
[330080066,1718989352630,-852.94,0.00022739,4]
[330080067,1718989352668,-150.0,0.00022744,10]
[330080068,1718989352708,-150.0,0.00022744,10]
[330080069,1718989352749,-150.0,0.00022744,10]
[330080070,1718989352789,-150.0,0.00022757,10]
[330080071,1718989352828,-150.0,0.00022757,10]
[330080072,1718989352868,-150.0,0.00022757,10]
[330080073,1718989352924,-818.50245,0.0002276,2]
[330080074,1718989352966,-30254.52058162,0.0002277,2]
[330080075,1718989353007,-1069.4164457,0.00022989,2]
[330080076,1718989353052,-187.89378223,0.00022989,2]
[330080077,1718989353091,-1658.86050853,0.00022989,2]
[330080078,1718989353130,-1133.53475068,0.00022989,2]
[330080079,1718989353171,-1262.77288771,0.00022989,2]
[330080080,1718989353211,-2827.40811708,0.00022989,2]
[330080081,1718989353249,-3105.79028967,0.00022989,2]
[330080082,1718989353288,-437.90975551,0.00022989,2]
[330080083,1718989353325,-209.38100041,0.00022989,2]
[330080084,1718989353364,-5907.85263176,0.00022989,2]
[330080085,1718989353405,-3105.79028967,0.00022989,2]
[330080086,1718989353447,-10000.0,0.00022989,2]
[330080087,1718989353485,-300.0,0.0002299,2]
[330080088,1718989353532,-3807838.00558363,0.0002299,5]
[330080089,1718989359832,-6115.325386,0.00021448,2]
[330080090,1718989359876,-181.438469,0.00021448,2]
[330080091,1718989359927,-6360.105301,0.00021448,2]
[330080092,1718989360066,-211.996297,0.00021448,2]
[330080093,1718989360108,-1052.33,0.00021551,2]
[330080094,1718989360148,-6115.325386,0.00021717,2]
[330080095,1718989360187,-6360.105301,0.00021717,2]
[330080096,1718989360225,-211.996297,0.00021717,2]
[330080097,1718989360265,-12807.51,0.00021917,4]
[330080098,1718989360305,-500.0,0.00021917,4]
[330080099,1718989360344,-500.0,0.00021917,4]
[330080100,1718989360385,-500.0,0.00021917,4]
[330080101,1718989360426,-2433.25,0.00021917,4]
[330080102,1718989360468,-500.0,0.00021917,4]
[330080103,1718989360509,-500.0,0.00021917,4]
[330080104,1718989360548,-500.0,0.00021917,4]
[330080105,1718989360594,-500.0,0.00021917,4]
[330080106,1718989360636,-500.0,0.00021917,4]
[330080107,1718989360674,-500.0,0.00021917,4]
[330080108,1718989360714,-500.0,0.00021917,4]
[330080109,1718989360752,-500.0,0.00021917,4]
[330080110,1718989360788,-1723.02,0.00021917,4]
[330080111,1718989360827,-500.0,0.00021917,4]
[330080112,1718989360864,-500.0,0.00021917,4]
[330080113,1718989360903,-6765.8,0.00021917,4]
[330080114,1718989360941,-500.0,0.00021917,4]
[330080115,1718989360976,-500.0,0.00021917,4]
[330080116,1718989361015,-500.0,0.00021917,4]
[330080117,1718989361053,-500.0,0.00021917,4]
[330080118,1718989361092,-883.79,0.00021917,4]
[330080119,1718989361132,-500.0,0.00021917,4]
[330080120,1718989361168,-500.0,0.00021917,4]
[330080121,1718989361558,-500.0,0.00021917,4]
[330080122,1718989361600,-196.6022275,0.00021917,4]
[330080123,1718989361645,-500.0,0.00021917,4]
[330080124,1718989361685,-6115.325386,0.00021985,2]
[330080125,1718989361723,-211.996297,0.00021985,2]
[330080126,1718989361769,-6360.105301,0.00021985,2]
[330080127,1718989361810,-354.76117685,0.00022091,2]
[330080128,1718989361855,-354.76117684,0.0002218,2]
[330080129,1718989361897,-500.0,0.0002218,4]
[330080130,1718989361940,-500.0,0.0002218,4]
[330080131,1718989361979,-2656.19,0.0002218,4]
[330080132,1718989362019,-517.46596701,0.0002218,4]
[330080133,1718989362059,-574.62020592,0.0002218,4]
[330080134,1718989362097,-500.0,0.0002218,4]
[330080135,1718989362136,-362.5278045,0.0002218,4]
[330080136,1718989362176,-500.0,0.0002218,4]
[330080137,1718989362217,-19840.94,0.0002218,4]
[330080138,1718989362255,-1490.78,0.0002218,4]
[330080139,1718989362293,-500.0,0.0002218,4]
[330080140,1718989362328,-500.0,0.0002218,4]
[330080141,1718989362362,-500.0,0.0002218,4]
[330080142,1718989362397,-500.0,0.0002218,4]
[330080143,1718989362432,-500.0,0.0002218,4]
[330080144,1718989362466,-500.0,0.0002218,4]
[330080145,1718989362500,-500.0,0.0002218,4]
[330080146,1718989362538,-500.0,0.0002218,4]
[330080147,1718989362575,-500.0,0.0002218,4]
[330080148,1718989362608,-500.0,0.0002218,4]
[330080149,1718989362642,-500.0,0.0002218,4]
[330080150,1718989362680,-48826.68,0.0002218,4]
[330080151,1718989362717,-500.0,0.0002218,4]
[330080152,1718989362752,-500.0,0.0002218,4]
[330080153,1718989362788,-703.12,0.0002219,4]
[330080154,1718989362826,-2936.63,0.0002219,4]
[330080155,1718989362861,-500.0,0.0002219,4]
[330080156,1718989362897,-3039.72,0.0002219,4]
[330080157,1718989362935,-500.0,0.0002219,4]
[330080158,1718989362975,-12807.51,0.00022191,4]
[330080159,1718989363012,-500.0,0.00022191,4]
[330080160,1718989363049,-500.0,0.00022191,4]
[330080161,1718989363086,-500.0,0.00022191,4]
[330080162,1718989363124,-2433.25,0.00022191,4]
[330080163,1718989363162,-500.0,0.00022191,4]
[330080164,1718989363198,-500.0,0.00022191,4]
[330080165,1718989363234,-500.0,0.00022191,4]